bitfinex-derivatives/quotes_SOLF0:USTF0_20250919
["timestamp","ask_amount","ask_price","bid_price","bid_amount"]
[1758276129654,100.64,243.07,243.04,10.73593317]
[1758276129857,100.64,243.07,243.05,3.63593317]
[1758276130059,6.69,243.08,243.06,3.63593317]
[1758276130354,6.69,243.08,243.04,7.1]
[1758276130355,100.64,243.08,243.07,3.63593317]
[1758276130952,107.33,243.09,243.07,3.63593317]
[1758276131254,107.33,243.09,243.08,3.63593317]
[1758276134455,107.75,243.09,243.08,3.63593317]
[1758276135054,5.15,243.08,242.93,7.1]
[1758276135754,100.64,243.09,242.93,7.1]
[1758276136157,5.15,243.08,242.93,7.1]
[1758276137056,100.64,243.09,242.93,7.1]
[1758276137461,5.15,243.08,242.89,3.45012664]
[1758276137661,100.64,243.09,242.89,7.1]
[1758276138161,105.19797265,243.09,242.89,7.1]
[1758276138657,5.15,243.08,242.89,7.1]
[1758276138860,33.66,243.07,242.89,7.1]
[1758276139364,5.15,243.06,242.89,7.1]
[1758276139663,40.64,243.05,242.89,7.1]
[1758276139864,5.15,243.04,242.9,7.1]
[1758276141962,18.52,243.03,242.9,7.1]
[1758276143364,36.12,243.02,242.91,7.1]
[1758276143658,5.15,243.01,242.91,7.1]
[1758276144666,5.15,243.01,242.91,10.55012664]
[1758276144960,36.12,243.02,242.91,10.55012664]
[1758276145167,36.12,243.02,242.91,7.1]
[1758276145367,5.15,243.01,242.91,7.1]
[1758276145864,5.15,243.01,242.89,3.45012664]
[1758276146861,5.15,243.01,242.88,3.45012664]
[1758276147165,5.15,243.01,242.9,7.1]
[1758276147366,5.15,243.01,242.91,3.62162008]
[1758276147565,5.15,243.01,242.92,3.62162008]
[1758276147766,5.15,243.01,242.93,3.62162008]
[1758276147961,36.12,243.02,242.9,7.1]
[1758276148162,5.15,243.01,242.9,7.1]
[1758276148363,5.16,243.01,242.9,7.1]
[1758276149368,36.12,243.02,242.9,7.1]
[1758276149568,5.16,243.01,242.9,7.1]
[1758276149769,5.16,243.01,242.91,3.57961591]
[1758276149969,5.16,243.01,242.92,3.57961591]
[1758276150266,5.16,242.99,242.93,3.57961591]
[1758276150469,5.16,242.99,242.94,3.57961591]
[1758276150665,5.16,242.99,242.9,7.1]
[1758276151869,18.52,243.02,242.91,6.82]
[1758276152071,5.16,243.03,242.93,6.82]
[1758276153061,5.16,243.03,242.91,3.45012664]
[1758276153266,5.16,243.03,242.89,6.82]
[1758276153471,36.12,243.04,242.89,6.82]
[1758276153665,5.16,243.03,242.89,6.82]
[1758276154071,36.12,243.04,242.89,6.82]
[1758276154771,5.16,243.03,242.89,6.82]
[1758276154965,4.55797265,242.99,242.8,6.82]
[1758276155772,5.16,242.98,242.8,6.82]
[1758276156272,4.55797265,243.0,242.8,6.82]
[1758276156768,5.16,242.98,242.8,6.82]
[1758276157273,4.55797265,242.99,242.8,6.82]
[1758276157571,5.16,242.98,242.8,6.82]
[1758276158375,4.55797265,243.0,242.8,6.82]
[1758276158575,5.16,242.98,242.8,6.82]
[1758276158977,4.55797265,242.99,242.8,6.82]
[1758276159275,5.16,242.99,242.8,6.82]
[1758276159976,124.0,242.98,242.8,6.82]
[1758276160372,5.16,242.97,242.8,6.82]
[1758276160578,5.16,242.95,242.8,6.82]
[1758276160881,311.28,242.96,242.8,6.82]
[1758276160882,100.7,242.94,242.8,6.82]
[1758276161074,5.16,242.93,242.8,6.82]
[1758276162277,100.7,242.94,242.8,6.82]
[1758276162681,5.16,242.92,242.8,6.82]
[1758276164579,5.16,242.9,242.8,6.82]
[1758276165674,100.66,242.89,242.8,6.82]
[1758276167383,100.66,242.88,242.8,6.82]
[1758276168393,100.66,242.87,242.8,6.82]
[1758276169183,5.16,242.9,242.8,6.82]
[1758276169385,100.66,242.89,242.8,6.82]
[1758276169578,5.16,242.9,242.8,6.82]
[1758276169778,33.34,242.89,242.8,6.82]
[1758276170278,5.16,242.9,242.8,6.82]
[1758276170574,64.94,242.88,242.8,6.82]
[1758276170774,100.68,242.87,242.8,6.82]
[1758276171383,5.16,242.9,242.8,6.82]
[1758276171585,100.68,242.89,242.8,6.82]
[1758276171980,5.16,242.9,242.8,6.82]
[1758276172286,21.48,242.89,242.8,6.82]
[1758276172480,5.16,242.88,242.8,6.82]
[1758276173586,53.66,242.87,242.8,6.82]
[1758276174688,84.22,242.86,242.8,6.82]
[1758276174878,12.04858734,242.92,242.8,6.82]
[1758276175187,100.68,242.91,242.8,6.82]
[1758276175384,5.16,242.9,242.8,6.82]
[1758276176591,100.68,242.89,242.8,6.82]
[1758276177481,5.16,242.9,242.8,6.82]
[1758276177688,105.84,242.9,242.8,6.82]
[1758276181194,105.82,242.9,242.8,6.82]
[1758276185093,5.16,242.89,242.8,6.82]
[1758276185492,100.66,242.9,242.76,7.17]
[1758276185993,5.16,242.89,242.76,7.17]
[1758276186291,100.66,242.9,242.76,7.17]
[1758276186590,5.16,242.89,242.76,7.17]
[1758276186990,100.66,242.9,242.76,7.17]
[1758276187595,5.16,242.89,242.76,7.17]
[1758276187991,100.66,242.9,242.76,7.17]
[1758276188491,5.16,242.89,242.76,7.17]
[1758276188687,323.4561769,242.96,242.76,7.17]
[1758276188688,5.16,242.88,242.76,7.17]
[1758276188892,5.16,242.86,242.76,7.17]
[1758276189098,100.66,242.85,242.76,7.17]
[1758276189396,323.4561769,242.96,242.77,7.17]
[1758276189592,5.16,242.94,242.78,3.44777053]
[1758276189787,5.16,242.92,242.79,7.17]
[1758276189991,100.66,242.93,242.79,7.17]
[1758276190197,100.66,242.92,242.79,7.17]
[1758276190389,5.16,242.91,242.79,7.17]
[1758276190590,100.66,242.92,242.79,7.17]
[1758276190790,5.16,242.91,242.79,7.17]
[1758276191096,100.66,242.92,242.79,7.17]
[1758276191492,5.16,242.91,242.79,7.17]
[1758276192189,100.66,242.92,242.79,7.17]
[1758276192390,5.16,242.91,242.79,7.17]
[1758276192594,100.66,242.92,242.79,7.17]
[1758276192994,5.16,242.91,242.76,7.17]
[1758276193194,100.66,242.92,242.76,7.17]
[1758276194496,5.16,242.91,242.76,7.17]
[1758276194690,100.66,242.92,242.76,7.17]
[1758276194896,323.4561769,242.96,242.76,7.17]
[1758276195096,100.66,242.95,242.76,7.17]
[1758276195601,5.16,242.95,242.76,7.17]
[1758276195802,5.16,242.93,242.76,7.17]
[1758276196000,100.66,242.94,242.76,7.17]
[1758276196201,5.16,242.93,242.76,7.17]
[1758276196402,100.66,242.94,242.76,7.17]
[1758276196794,323.4561769,242.96,242.76,7.17]
[1758276197000,5.16,242.94,242.78,7.17]
[1758276197304,100.66,242.95,242.79,7.17]
[1758276197798,5.16,242.94,242.79,7.17]
[1758276197998,100.66,242.95,242.79,7.17]
[1758276198205,100.66,242.95,242.79,10.61777053]
[1758276198399,100.66,242.94,242.79,10.61777053]
[1758276198605,100.66,242.94,242.79,7.17]
[1758276198800,5.16,242.93,242.79,7.17]
[1758276199206,5.16,242.93,242.79,10.61777053]
[1758276199602,100.66,242.94,242.79,10.61777053]
[1758276199807,5.16,242.92,242.81,10.61777053]
[1758276200003,5.16,242.92,242.83,3.44777053]
[1758276200208,100.66,242.91,242.84,7.17]
[1758276201407,5.16,242.92,242.85,3.75466964]
[1758276201607,5.16,242.91,242.87,7.17]
[1758276201807,5.16,242.89,242.88,3.75466964]
[1758276202306,105.82,242.89,242.83,7.17]
[1758276203105,100.66,242.88,242.83,10.61777053]
[1758276203299,100.66,242.88,242.83,3.44777053]
[1758276203703,100.66,242.88,242.84,7.17]
[1758276203899,100.66,242.88,242.83,3.44777053]
[1758276204401,100.66,242.88,242.84,7.17]
[1758276204605,100.66,242.88,242.83,3.44777053]
[1758276204906,100.66,242.88,242.84,7.17]
[1758276205107,100.66,242.88,242.83,3.44777053]
[1758276205301,100.66,242.88,242.84,7.17]
[1758276205507,100.66,242.88,242.83,3.44777053]
[1758276205804,100.66,242.89,242.83,3.44777053]
[1758276206203,100.66,242.89,242.84,3.44777053]
[1758276206407,100.66,242.89,242.85,7.17]
[1758276206809,100.66,242.89,242.84,3.44777053]
[1758276207209,100.66,242.89,242.85,7.17]
[1758276207407,100.66,242.89,242.84,3.44777053]
[1758276207904,5.16,242.92,242.84,3.44777053]
[1758276208209,100.66,242.91,242.84,10.61777053]
[1758276209210,5.16,242.92,242.84,10.61777053]
[1758276209504,100.66,242.9,242.84,10.61777053]
[1758276210112,100.66,242.9,242.84,7.17]
[1758276212910,100.66,242.89,242.84,6.87]
[1758276213113,100.66,242.89,242.83,10.33721385]
[1758276216913,100.66,242.89,242.84,3.46721385]
[1758276217117,100.66,242.89,242.85,6.87]
[1758276217614,105.82,242.89,242.85,6.87]
[1758276218015,5.16,242.88,242.84,10.33721385]
[1758276218216,100.66,242.89,242.84,3.46721385]
[1758276218515,105.82,242.89,242.84,3.46721385]
[1758276219115,105.82,242.89,242.85,6.87]
[1758276220614,105.82,242.89,242.84,3.46721385]
[1758276220818,105.82,242.89,242.85,6.87]
[1758276221819,105.82,242.89,242.84,3.46721385]
[1758276222017,105.82,242.89,242.85,6.87]
[1758276222216,100.64,242.92,242.85,6.87]
[1758276222410,5.16,242.92,242.85,10.33721385]
[1758276222719,100.64,242.93,242.87,10.33721385]
[1758276223518,100.64,242.93,242.84,4.60016885]
[1758276223519,105.8,242.93,242.89,6.87]
[1758276224116,105.8,242.93,242.89,3.46721385]
[1758276224320,105.8,242.93,242.9,6.87]
[1758276225822,5.16,242.93,242.9,6.87]
[1758276226022,105.8,242.93,242.9,6.87]
[1758276229023,5.16,242.93,242.9,6.87]
[1758276230721,21.48,242.94,242.89,6.87]
[1758276230927,21.48,242.94,242.88,3.46721385]
[1758276230928,5.16,242.96,242.92,6.87]
[1758276231129,5.16,242.96,242.92,10.33721385]
[1758276231328,5.16,242.96,242.91,3.46721385]
[1758276232029,5.16,242.96,242.92,6.87]
[1758276232230,5.16,242.96,242.91,3.46721385]
[1758276232832,5.16,243.01,242.92,6.87]
[1758276233032,105.78,243.01,242.93,3.46721385]
[1758276233234,5.16,243.01,242.93,3.46721385]
[1758276233434,105.78,243.01,242.93,3.46721385]
[1758276233734,105.78,243.01,242.94,6.87]
[1758276234937,5.16,243.01,242.94,6.87]
[1758276240736,5.17,243.04,242.94,6.87]
[1758276241034,311.28,243.07,242.9,4.60016885]
[1758276241035,316.45,243.07,242.96,7.18]
[1758276241338,5.17,243.07,242.99,7.18]
[1758276241746,5.17,243.07,243.01,7.18]
[1758276241941,5.17,243.07,243.03,7.18]
[1758276242242,100.58,243.1,243.04,3.66412032]
[1758276242542,5.17,243.09,243.05,10.84412032]
[1758276242742,0.7162336,243.13,243.06,3.66412032]
[1758276242942,5.17,243.11,243.07,10.84412032]
[1758276243143,5.17,243.11,243.08,3.66412032]
[1758276243342,5.17,243.11,243.09,3.66412032]
[1758276243542,5.17,243.11,243.1,3.66412032]
[1758276244440,5.15,243.11,243.1,3.66412032]
[1758276248449,5.15,243.11,243.1,3.65264355]
[1758276248848,17.11,243.12,243.1,3.65264355]
[1758276249048,17.11,243.12,243.11,3.65264355]
[1758276249248,101.27607885,243.16,243.11,3.65264355]
[1758276249449,101.27607885,243.16,243.07,7.18]
[1758276249751,5.15,243.15,243.08,3.6515799]
[1758276249952,5.15,243.15,243.09,3.6515799]
[1758276250148,101.27607885,243.16,243.1,3.6515799]
[1758276250352,5.15,243.15,243.11,3.6515799]
[1758276250552,5.15,243.15,243.07,7.18]
[1758276250750,5.15,243.15,243.08,3.65074158]
[1758276251045,5.15,243.15,243.09,3.65074158]
[1758276251251,5.15,243.15,243.1,3.65074158]
[1758276251550,5.15,243.15,243.11,3.65074158]
[1758276251752,5.15,243.15,243.07,7.18]
[1758276251953,5.15,243.15,243.08,3.65002545]
[1758276252153,5.15,243.15,243.09,3.65002545]
[1758276252451,5.15,243.15,243.1,3.65002545]
[1758276252752,5.15,243.15,242.92,62.20216885]
[1758276252753,4.118,243.12,242.71,32.16387787]
[1758276252954,24.72,243.0,242.72,3.6524618]
[1758276253151,29.27797265,242.9,242.71,32.16387787]
[1758276253353,24.72,242.88,242.57,5.11947978]
[1758276253646,110.56,242.89,242.64,3.79798122]
[1758276253647,4.55797265,242.75,242.64,3.79798122]
[1758276253851,4.55797265,242.71,242.46,12.25568546]
[1758276254050,318.7384953,242.7,242.39,71.95490641]
[1758276254251,3.08052265,242.69,242.39,71.95490641]
[1758276254557,3.08052265,242.68,242.4,3.82007231]
[1758276254760,111.36,242.67,242.41,3.82007231]
[1758276254961,3.08052265,242.66,242.42,3.82007231]
[1758276255259,3.08052265,242.66,242.43,3.82007231]
[1758276255456,3.08052265,242.66,242.45,7.18]
[1758276255657,90.88052265,242.65,242.46,3.82007231]
[1758276255858,3.08052265,242.64,242.47,11.00007231]
[1758276256060,3.08052265,242.64,242.48,3.82007231]
[1758276256258,3.08052265,242.64,242.49,3.82007231]
[1758276256462,3.08052265,242.64,242.5,3.82007231]
[1758276256659,3.08052265,242.63,242.51,3.82007231]
[1758276256959,94.82052265,242.62,242.52,3.82007231]
[1758276257158,91.74,242.62,242.53,3.82007231]
[1758276257358,323.74880222,242.7,242.54,3.82007231]
[1758276257558,114.42640741,242.69,242.55,11.00007231]
[1758276257755,114.44640741,242.68,242.56,3.82007231]
[1758276257965,3.10640741,242.67,242.57,3.82007231]
[1758276258258,3.10640741,242.67,242.58,3.82007231]
[1758276258465,3.10640741,242.67,242.59,3.82007231]
[1758276258659,3.10640741,242.67,242.6,3.82007231]
[1758276258860,3.10640741,242.67,242.61,3.82007231]
[1758276259058,3.10640741,242.67,242.62,3.82007231]
[1758276259266,3.10640741,242.67,242.63,3.80007231]
[1758276259460,3.10640741,242.67,242.55,7.18]
[1758276260760,3.10640741,242.67,242.43,7.18]
[1758276261067,111.56,242.66,242.43,7.18]
[1758276261267,3.10640741,242.65,242.43,7.18]
[1758276261459,3.10640741,242.64,242.43,7.18]
[1758276261660,111.56,242.66,242.43,7.18]
[1758276261961,3.09585504,242.65,242.43,7.18]
[1758276262155,114.79585504,242.64,242.43,7.18]
[1758276262362,111.62,242.63,242.43,7.18]
[1758276262970,111.58,242.62,242.43,7.18]
[1758276263266,111.6,242.61,242.43,7.18]
[1758276263465,111.6,242.6,242.43,7.18]
[1758276263663,111.58,242.6,242.43,7.18]
[1758276267469,111.38,242.6,242.43,7.18]
[1758276267670,111.38,242.61,242.43,7.18]
[1758276267965,323.74880222,242.7,242.43,7.18]
[1758276268160,114.44399751,242.69,242.43,7.18]
[1758276268362,3.08399751,242.68,242.43,7.18]
[1758276268567,114.42399751,242.67,242.43,7.18]
[1758276268763,3.08399751,242.66,242.43,7.18]
[1758276269070,3.08399751,242.65,242.43,7.18]
[1758276269271,3.08399751,242.64,242.43,7.18]
[1758276269472,3.08399751,242.63,242.43,7.18]
[1758276269675,3.08399751,242.62,242.43,7.18]
[1758276269873,3.08399751,242.61,242.43,7.18]
[1758276270071,3.08399751,242.6,242.43,7.18]
[1758276270267,108.82,242.59,242.43,7.18]
[1758276271674,2.82576562,242.66,242.43,7.18]
[1758276271876,114.43696964,242.65,242.43,7.18]
[1758276272075,3.07696964,242.64,242.43,7.18]
[1758276272774,3.07696964,242.64,242.44,3.7103]
[1758276272976,3.07696964,242.64,242.45,7.19]
[1758276273371,114.39696964,242.63,242.45,7.19]
[1758276273577,3.07696964,242.62,242.47,7.19]
[1758276273877,111.32,242.63,242.47,7.19]
[1758276274077,3.03098492,242.62,242.47,7.19]
[1758276274277,111.32,242.63,242.47,7.17]
[1758276274579,3.03005539,242.62,242.47,7.17]
[1758276274776,3.02996383,242.61,242.47,7.17]
[1758276274975,84.12,242.62,242.47,7.17]
[1758276276573,3.02831691,242.61,242.47,7.17]
[1758276276773,84.12,242.62,242.47,7.17]
[1758276277278,3.02796513,242.61,242.47,7.17]
[1758276277474,84.12,242.62,242.47,7.17]
[1758276277674,3.02796513,242.61,242.47,7.17]
[1758276277874,84.12,242.62,242.47,7.17]
[1758276278176,3.02796513,242.61,242.47,7.17]
[1758276278378,84.12,242.62,242.47,7.17]
[1758276278580,3.02772018,242.61,242.47,7.17]
[1758276278780,84.12,242.62,242.47,7.17]
[1758276278978,1.87015711,242.48,242.29,7.72622509]
[1758276279178,1.87015711,242.48,241.94,57.8359]
[1758276279179,1.87015711,242.3,242.06,7.19]
[1758276279370,4.30498894,242.29,242.06,7.19]
[1758276279573,3.02498894,242.28,242.06,7.19]
[1758276279878,313.55015711,242.3,242.06,7.19]
[1758276280077,123.94035751,242.29,242.06,7.19]
[1758276280277,313.55015711,242.3,242.06,7.19]
[1758276280678,123.96233264,242.29,242.06,7.19]
[1758276280874,313.55015711,242.3,242.06,7.19]
[1758276280875,3.08233264,242.28,242.06,7.19]
[1758276281086,123.98233264,242.27,242.06,7.19]
[1758276281276,4.95248975,242.26,242.06,7.19]
[1758276281476,1.87015711,242.26,242.06,7.19]
[1758276281676,121.0,242.25,242.06,7.19]
[1758276281871,311.68,242.3,242.06,7.19]
[1758276281872,120.94,242.24,242.06,7.19]
[1758276282273,311.68,242.3,242.06,7.19]
[1758276282583,3.07529186,242.29,242.06,7.19]
[1758276282885,3.07531321,242.28,242.06,7.19]
[1758276283185,120.8,242.27,242.06,7.19]
[1758276283381,120.74,242.26,242.06,7.19]
[1758276283883,120.7,242.25,242.06,7.19]
[1758276284076,311.68,242.3,242.06,7.19]
[1758276284278,124.19231773,242.29,242.06,7.19]
[1758276284473,3.07231773,242.28,242.06,7.19]
[1758276284774,124.23231773,242.27,242.06,7.19]
[1758276284973,3.07231773,242.26,242.06,7.19]
[1758276285277,3.07231773,242.26,241.86,57.8541]
[1758276285278,24.72,242.24,241.75,8.11508944]
[1758276285480,3.07231773,242.25,241.75,8.11508944]
[1758276285481,12.36,242.1,241.75,0.92508944]
[1758276285678,438.97231773,242.09,241.82,7.19]
[1758276285980,314.99231773,242.08,241.87,7.19]
[1758276286182,3.07231773,242.07,241.87,7.19]
[1758276286378,122.84,242.06,241.89,7.19]
[1758276286782,124.0,242.16,241.89,7.19]
[1758276286986,315.03993104,242.15,241.89,7.19]
[1758276287175,3.05993104,242.14,241.89,7.19]
[1758276287382,123.02,242.13,241.89,7.19]
[1758276287581,3.05993104,242.12,241.89,7.19]
[1758276287783,435.98,242.15,241.89,7.19]
[1758276287976,123.04,242.11,241.89,7.19]
[1758276288176,4.64529951,242.06,241.85,7.19]
[1758276288681,123.66,242.05,241.85,7.19]
[1758276289181,448.34,242.15,241.79,57.8704]
[1758276289182,435.98,242.15,241.79,57.8704]
[1758276289489,7.69928648,242.14,241.89,7.19]
[1758276289688,3.05398697,242.13,241.89,7.19]
[1758276289884,124.02,242.12,241.89,7.19]
[1758276290082,4.64529951,242.14,241.89,7.19]
[1758276290284,123.96,242.13,241.89,7.19]
[1758276291786,4.64529951,242.14,241.89,7.19]
[1758276291986,127.03401953,242.13,241.89,7.19]
[1758276292186,3.05401953,242.12,241.89,7.19]
[1758276292382,123.98,242.13,241.89,7.19]
[1758276292685,3.05511946,242.12,241.89,7.19]
[1758276292885,123.98,242.13,241.89,7.19]
[1758276294384,123.46,242.12,241.89,7.19]
[1758276295789,4.64529951,242.14,241.89,7.19]
[1758276295988,126.18446558,242.13,241.89,7.19]
[1758276296183,3.06958959,242.12,241.89,7.19]
[1758276296386,3.06958959,242.11,241.89,7.19]
[1758276296590,4.64529951,242.14,241.89,7.19]
[1758276296786,126.06967303,242.13,241.89,7.19]
[1758276296986,126.00967303,242.12,241.89,7.19]
[1758276297182,122.94,242.12,241.89,7.19]
[1758276297383,3.07600251,242.11,241.89,7.19]
[1758276297585,3.07600251,242.1,241.89,7.19]
[1758276297887,122.94,242.12,241.89,7.19]
[1758276298090,3.07666627,242.11,241.89,7.19]
[1758276298288,3.07666627,242.1,241.89,7.19]
[1758276298485,122.94,242.12,241.89,7.19]
[1758276298678,3.07643944,242.11,241.9,6.89]
[1758276298884,3.07643944,242.1,241.9,6.89]
[1758276299086,311.98,242.15,241.9,6.89]
[1758276299286,3.07663963,242.14,241.9,6.89]
[1758276299490,311.98,242.15,241.91,82.52]
[1758276299693,3.07694002,242.14,241.92,6.89]
[1758276299990,311.98,242.15,241.92,6.89]
[1758276300290,3.07695215,242.14,241.92,6.89]
[1758276300590,3.07672921,242.13,241.92,6.89]
[1758276300788,3.07672921,242.12,241.92,6.89]
[1758276301095,122.32,242.13,241.92,6.89]
[1758276301298,3.07662335,242.12,241.92,6.89]
[1758276301491,122.32,242.13,241.92,6.89]
[1758276301683,3.07641789,242.12,241.92,6.89]
[1758276301982,122.32,242.13,241.92,6.89]
[1758276302586,4.64529951,242.21,241.96,3.7176]
[1758276302783,122.14,242.19,241.97,6.89]
[1758276302990,3.07684669,242.18,241.97,6.89]
[1758276303194,3.07684669,242.18,241.98,6.89]
[1758276306292,3.07684669,242.18,241.98,10.6073]
[1758276306591,3.07684669,242.18,241.99,6.89]
[1758276307493,3.07684669,242.18,242.0,3.717]
[1758276307798,122.14,242.19,242.0,3.717]
[1758276307799,121.54,242.25,242.01,6.89]
[1758276308092,3.08394008,242.24,242.01,6.89]
[1758276308297,3.08394008,242.23,242.01,6.89]
[1758276308497,3.08394008,242.22,242.01,6.89]
[1758276308693,3.08394008,242.21,242.01,6.89]
[1758276308898,312.3,242.28,242.05,6.89]
[1758276309099,3.08663257,242.27,242.05,6.89]
[1758276309401,3.08663257,242.26,242.05,6.89]
[1758276309700,3.08663257,242.25,242.05,6.89]
[1758276309900,3.08663257,242.24,242.07,6.89]
[1758276310198,3.08663257,242.23,242.07,6.89]
[1758276310399,3.08663257,242.22,242.07,6.89]
[1758276310704,3.08663257,242.21,242.07,6.89]
[1758276310906,3.08663257,242.2,242.07,6.89]
[1758276311091,3.08663257,242.19,242.07,6.89]
[1758276311294,3.09254172,242.18,242.07,6.89]
[1758276311601,4.55797265,242.27,242.07,6.89]
[1758276311896,3.09276985,242.26,242.07,6.89]
[1758276312091,3.09276985,242.25,242.07,6.89]
[1758276312290,3.09276985,242.24,242.07,6.89]
[1758276312495,3.09276985,242.23,242.07,6.89]
[1758276312692,3.09276985,242.22,242.07,6.89]
[1758276312904,3.09276985,242.21,242.07,6.89]
[1758276313199,3.09276985,242.2,242.07,6.89]
[1758276313398,3.09276985,242.19,242.07,6.89]
[1758276313595,3.09276985,242.18,242.07,6.89]
[1758276313795,3.09276985,242.17,242.07,6.89]
[1758276314101,4.55797265,242.26,242.07,6.89]
[1758276314297,4.55797265,242.24,242.07,6.89]
[1758276314598,3.09959879,242.23,242.07,6.89]
[1758276314795,3.09959879,242.22,242.07,6.89]
[1758276314993,3.09959879,242.21,242.07,6.89]
[1758276315192,3.09959879,242.2,242.07,6.89]
[1758276315402,3.09959879,242.19,242.07,6.89]
[1758276315598,3.09959879,242.18,242.07,6.89]
[1758276315801,3.09959879,242.17,242.07,6.89]
[1758276315996,3.09959879,242.16,242.07,6.89]
[1758276316200,3.09959879,242.15,242.07,6.89]
[1758276316500,3.09959879,242.14,242.07,6.89]
[1758276316701,3.09959879,242.13,242.07,6.89]
[1758276316995,3.09959879,242.12,242.0,6.89]
[1758276317199,4.55797265,242.2,242.0,6.89]
[1758276317404,3.11253918,242.19,242.01,6.89]
[1758276317704,3.11253918,242.18,242.01,6.89]
[1758276317901,3.11253918,242.17,242.01,6.89]
[1758276318201,3.11253918,242.16,242.01,6.89]
[1758276318407,3.11253918,242.15,242.01,6.89]
[1758276318601,3.11253918,242.14,242.01,6.89]
[1758276318797,3.11253918,242.13,242.01,6.89]
[1758276319102,3.11253918,242.12,242.01,6.89]
[1758276319298,4.55797265,242.1,241.89,6.89]
[1758276319493,4.55797265,242.08,241.89,6.89]
[1758276319695,4.55797265,242.06,241.91,6.89]
[1758276319995,3.11253918,242.05,241.91,6.89]
[1758276320193,7.67051183,242.04,241.91,6.89]
[1758276320396,3.11253918,242.03,241.91,6.89]
[1758276320604,3.11253918,242.02,241.91,6.89]
[1758276320798,3.11253918,242.01,241.91,6.89]
[1758276321100,3.11253918,242.0,241.91,6.89]
[1758276321302,3.11253918,241.99,241.91,6.89]
[1758276321502,3.11253918,241.98,241.91,6.89]
[1758276321700,3.11253918,241.97,241.92,3.7182]
[1758276322005,4.55797265,242.04,241.93,6.89]
[1758276322193,4.55797265,242.02,241.93,6.89]
[1758276322501,9.20327216,242.16,241.93,6.89]
[1758276323194,4.55797265,242.13,241.93,6.89]
[1758276323597,4.64529951,242.16,241.93,6.89]
[1758276324693,4.64529951,242.16,241.95,6.89]
[1758276325308,4.64529951,242.16,241.97,6.89]
[1758276332511,4.55797265,242.18,241.97,6.89]
[1758276332711,25.36,242.2,241.98,6.74]
[1758276333806,25.36,242.2,241.99,6.74]
[1758276335412,4.55797265,242.24,242.01,6.74]
[1758276335611,117.56,242.24,242.01,6.74]
[1758276335812,120.39582307,242.24,242.01,6.74]
[1758276336209,120.39582307,242.24,242.01,10.4568]
[1758276336412,120.39582307,242.24,242.02,6.74]
[1758276337911,2.83582307,242.19,242.02,6.74]
[1758276340412,4.55797265,242.24,242.02,6.74]
[1758276340612,116.9,242.24,242.02,6.74]
[1758276340814,116.9,242.24,242.04,6.74]
[1758276345406,116.9,242.24,242.0,6.74]
[1758276345606,4.55797265,242.23,242.0,6.74]